{"text_format":"1","workbook":"xlsx","n_sheets":1,"sheets":["Sheet1"],"not_rendered":{"charts":0,"images":0,"macros":1,"external_links":0,"defined_names":1,"comments":0,"pivot_tables":0},"unopened":[],"bounds":{"document_bytes":16777216,"sheet_cells":100000,"rows_first":2000,"rows_last":500,"rows_between":2000,"halvings":0,"cell_chars":16384,"cell_head_chars":4096},"cells_cut":0,"cells_raw":0,"read":"whole","date_system":"1900"}

{"sheet":"Sheet1","index":0,"n_rows":58,"n_cols":61,"rows_kept":58,"cut":false,"hidden":false,"merged":[[48,48,49,49],[48,50,49,50],[45,53,47,53],[20,31,22,31],[29,31,31,31],[41,31,43,31],[44,49,46,49],[43,48,47,48],[10,35,10,36],[10,40,10,41],[17,35,17,36],[12,39,12,40],[28,53,30,53],[1,1,1,56],[31,23,33,23],[34,23,35,23],[16,26,16,27],[8,37,8,38],[6,38,6,39],[12,41,12,42],[4,39,4,40],[10,44,10,45],[33,25,35,25],[33,27,35,27],[30,29,33,29],[27,29,29,29],[34,5,34,6],[34,8,34,9],[34,13,34,15],[36,15,36,17],[51,34,51,35],[51,40,51,41],[57,41,57,42],[53,40,53,41],[48,26,49,27],[48,28,49,28],[48,30,49,31],[48,32,49,32],[36,27,37,27],[42,29,44,29],[35,5,35,6],[35,8,35,9],[35,13,35,15],[32,5,32,6],[32,8,32,9],[32,13,32,14],[32,16,32,18],[33,5,33,6],[33,8,33,9],[33,11,33,13],[30,5,30,6],[30,8,30,9],[30,13,30,14],[30,16,30,18],[31,5,31,6],[31,8,31,9],[31,13,31,15]]}
[]
[null,"TBDY-2018  KGM TAŞ İSTİNAT DUVAR BOYUTLANDIRMASI\n(inş.müh. Gürcan BERBEROĞLU tel:0532 366 02 04   www.betoncelik.com )                                                                                                                                                                     "]
[null,null,null,null,null,null,null,null,null,null,null,null,null,null,null,"Dikkat sadece sarı hücrelere data girilecek."]
[]
[null,null,null,null,null,null,null,null,null,null,null,null,null,null,null,null,null,null,null,null,null,null,null,null,null,null,null,null,null,null,null,null,null,null,null,null,null,null,null,{"$f":"+AM7+AF30*AT31/AU33","v":2.61},null,"m"]
[]
[null,null,null,null,null,null,null,null,null,null,null,null,null,null,null,null,null,null,null,null,null,null,null,null,null,null,null,null,null,null,null,null,null,null,null,null,null,null,{"$f":"AL9+AF21*AT31/AU33","v":1.88},null,"m"]
[]
[null,null,null,null,null,null,null,null,null,null,null,null,null,null,null,null,null,null,null,null,null,null,null,null,null,null,null,null,null,null,null,null,null,null,null,null,null,{"$f":"+AJ11+AO11","v":1.65},null,"m",null,null,null,null,null,null,null,null,null,null,null,null,null,null,null,null,null,null,null,null,"Karayolları Genel Müdürlüğü sitesindeki örnek paftalardaki en kesit esas alınmıştır."]
[null,null,null,null,null,null,null,null,null,null,null,null,null,null,null,null,null,null,null,null,null,null,null,null,null,null,null,null,null,null,null,null,null,null,null,null,null,null,null,null,null,null,null,null,null,null,null,null,null,null,null,null,null,null,null,null,null,null,null,null,"https://www.kgm.gov.tr/SiteCollectionDocuments/KGMdocuments/MerkezBirimler/EtutProjeveCevreDairesiBaskanligi/Calismalar/Ornekpaftalar.pdf"]
[null,null,null,null,null,null,null,null,null,null,null,null,null,null,null,null,null,null,null,null,null,null,null,null,null,null,null,null,null,null,null,null,null,null,null,1.1499999999999999,null,"m",null,null,0.5,null,"m",null,{"$f":"+AB34*AT31/AU33","v":1.6},null,"m"]
[]
[null,null,null,null,null,null,null,null,null,null,null,null,null,null,null,null,null,null,null,null,null,null,null,null,null,null,null,null,null,null,null,null,null,null,null,null,null,null,null,{"$f":"+AO11-AP13","v":0.2},null,0.3,null,"m"]
[]
[]
[]
[null,null,null,null,null,null,null,null,null,null,null,null,null,null,null,null,null,null,null,null,null,null,null,null,null,null,{"$f":"(AJ11+(AO11-AP13))*TAN(AJ18*PI()/180)","v":0.23804142395642769},null,"m"]
[null,null,null,null,null,null,null,null,null,null,null,null,null,null,null,null,null,null,null,null,null,null,null,null,null,null,null,null,null,null,null,null,null,null,null,10,null,"°"]
[]
[null,null,null,null,null,null,null,null,null,null,null,null,null,null,null,null,null,null,null,null,null,null,null,null,null,null,null,null,null,null,null,"m",null,null,null,null,1]
[null,null,null,null,null,null,null,null,null,null,null,null,null,null,null,null,null,null,null,null,null,null,null,null,null,null,null,null,null,null,null,{"$f":"+AJ21*AJ11/AK20","v":1.1499999999999999},null,null,null,1]
[]
[]
[]
[]
[]
[null,null,null,null,null,null,null,null,null,null,null,null,null,null,null,null,null,null,null,null,null,null,null,null,null,null,null,null,null,"m"]
[null,null,null,null,null,null,null,null,null,null,null,null,null,null,null,null,null,null,null,null,null,null,null,null,null,null,null,null,null,{"$f":"AB34*0.6","v":4.8},null,null,null,null,null,null,null,null,null,null,null,null,null,null,null,null,null,null,null,null,null,null,null,"m"]
[null,null,null,null,null,null,null,null,null,null,null,null,null,null,null,null,null,null,null,null,null,null,null,null,null,null,null,null,null,null,null,"m",null,null,null,null,null,null,null,null,null,null,null,null,null,null,null,null,null,null,null,null,null,{"$f":"+Z34-BB46","v":6.9019230769230777}]
[null,null,null,"Taş İstinat duvarı enkesit alanı",null,null,null,null,null,null,null,null,null,null,null,null,null,null,null,null,null,null,null,null,null,null,null,null,null,null,null,{"$f":"+AD28-AF21","v":3.65}]
[null,null,null,"W1 =(",null,{"$f":"+AO11","v":0.5},null,"+",{"$f":"+AM7-AJ11","v":0.73},null,")/",2,"*",{"$f":"+AF21","v":1.1499999999999999},null,"=",{"$f":"(F31+I31)/L31*N31","v":0.70724999999999993},null,null,"m²",null,null,null,"m",null,null,null,null,null,"0,6 * H =",null,null,null,null,null,null,null,null,null,null,null,null,null,null,null,1]
[null,null,null,"W2 =",null,{"$f":"+AJ11","v":1.1499999999999999},null,"*",{"$f":"+AF21","v":1.1499999999999999},null," /",2,"=",{"$f":"+F32*I32/L32","v":0.66124999999999989},null,null,"m²",null,null,null,null,null,null,{"$f":"+Z34+AA17","v":8.7399645008795055}]
[null,null,null,"W3 =(",null,{"$f":"+AM7","v":1.88},null,"+",{"$f":"+AN5","v":2.61},null,")/",2,"*",{"$f":"+AF30","v":3.65},null,"=",{"$f":"(F33+I33)/L33*N33","v":8.1942500000000003},null,null,"m²",null,null,null,null,null,"m",null,"m",null,null,null,null,null,null,null,null,null,null,null,null,null,null,null,null,null,null,5]
[null,null,null,"W4 =",null,{"$f":"+AN5","v":2.61},null,"*",{"$f":"+AF42","v":3.1999999999999997},null,"=",{"$f":"+F34*I34","v":8.3519999999999985},null,null,"m²",null,null,null,null,null,null,null,null,null,null,{"$f":"+AB34+AA49","v":8.5019230769230774},null,8]
[null,null,null,"W5 =",null,{"$f":"+AO52","v":2.5096153846153837},null,"*",{"$f":"+AE49","v":0.50192307692307681},null," /",2,"=",{"$f":"+F35*I35/L35","v":0.62981693786982207},null,null,"m²",null,null,null,null,null,null,"H' ="]
[null,null,null,"W6 =",null,{"$f":"+AO54-AO52","v":0.10038461538461618},null,"*",{"$f":"+AE49","v":0.50192307692307681},null," /",2,"=",{"$f":"+F36*I36/L36","v":2.5192677514793094E-2},null,null,"m²"]
[null,null,null,"W = W1 + W2 + W3 + W4 + W5 + W6 =",null,null,null,null,null,null,null,null,null,null,null,{"$f":"+N36+N35+L34+Q33+N32+Q31","v":18.569759615384612},null,null,"m²",null,null,null,null,null,null,null,null,"H ="]
[]
[]
[]
[null,null,null,null,null,null,null,null,null,null,null,null,null,null,null,null,null,null,null,null,null,null,null,null,null,null,null,null,null,null,null,"m"]
[null,null,null,null,null,null,null,null,null,null,null,null,null,null,null,null,null,null,null,null,null,null,null,null,null,null,null,null,null,"m",null,{"$f":"+AB34-AF30-AF21","v":3.1999999999999997}]
[null,null,null,null,null,null,null,null,null,null,null,null,null,null,null,null,null,null,null,null,null,null,null,null,null,null,null,null,null,{"$f":"+AF42+AE49","v":3.7019230769230766}]
[null,null,null,null,null,null,null,null,null,null,null,null,null,null,null,null,null,null,null,null,null,null,null,null,null,null,null,null,null,null,null,null,null,null,null,null,null,null,null,null,null,null,null,null,null,null,null,null,{"$f":"IF(AX45>1,\"\",\"artır.\")","v":""},"m"]
[null,null,null,null,null,null,null,null,null,null,null,null,null,null,null,null,null,null,null,null,null,null,null,null,null,null,null,null,null,null,null,null,null,null,null,null,null,null,null,null,null,null,null,null,null,null,null,null,null,{"$f":"+BB46-AE49","v":1.0980769230769232},null,null,null,"m"]
[null,null,null,null,null,null,null,null,null,null,null,null,null,null,null,null,null,null,null,null,null,null,null,null,null,null,null,null,null,null,null,null,null,null,{"$f":"+AU33","v":5},null,null,null,null,null,null,null,null,null,null,null,null,null,null,null,null,null,null,1.6]
[]
[null,null,null,null,null,null,null,null,null,null,null,null,null,null,null,null,null,null,null,null,null,null,null,null,null,null,null,null,null,null,null,null,null,null,{"$f":"+AT31","v":1}]
[null,null,null,null,null,null,null,null,null,null,null,null,null,null,null,null,null,null,null,null,null,null,null,null,null,null,{"$f":"+AE49","v":0.50192307692307681},null,"m",null,{"$f":"AO54/(TAN((ATAN(AT31/AU33)*180/PI())*PI()/180)+TAN((90-ATAN(AT31/AU33)*180/PI())*PI()/180))","v":0.50192307692307681},null,"m",null,null,null,null,null,null,null,null,null,null,null,null,null,null,null,{"$f":"+AE49","v":0.50192307692307681},null,"m"]
[null,null,null,null,null,null,null,null,null,null,null,null,null,null,null,null,null,null,null,null,null,null,null,null,null,null,null,null,null,null,null,null,null,null,null,null,null,null,null,null,null,null,{"$f":"+AT31","v":1}]
[null,null,null,null,null,null,null,null,null,null,null,null,null,null,null,null,null,null,null,null,null,null,null,null,null,null,null,null,null,null,null,null,null,null,null,null,null,null,null,null,{"$f":"+AU33","v":5}]
[null,null,null,null,null,null,null,null,null,null,null,null,null,null,null,null,null,null,null,null,null,null,null,null,null,null,null,null,null,null,null,null,null,null,{"$f":"AD43*AI48/AI46","v":0.74038461538461531},null,null,null,null,null,{"$f":"AE49/(AT31/AU33)","v":2.5096153846153837},null,"m"]
[]
[null,null,null,null,null,null,null,null,null,null,null,null,null,null,null,null,null,null,null,null,null,null,null,null,null,null,null,null,null,null,null,null,null,null,null,null,null,null,null,null,{"$f":"+AN5","v":2.61},null,"m"]
[]
[]
[]
[null,null,null,null,null,null,null,null,null,null,null,null,null,null,null,null,null,null,null,null,null,null,null,null,null,null,null,null,null,null,null,null,null,null,null,null,null,null,null,null,null,{"$f":"AO54*COS(ATAN(AT31/AU33))","v":2.5593155635533016},null,"m"]